bitfinex/quotes_ETHUSD_20241204
["timestamp","ask_amount","ask_price","bid_price","bid_amount"]
[1733282534895,2.72578,3668.7,3667.8,0.572297]
[1733282535827,1.14118875,3669.1,3667.8,0.572297]
[1733282536035,2.72558,3669.0,3667.9,0.02725894]
[1733282536195,2.72558,3669.0,3668.6,0.54892867]
[1733282537032,3.86657875,3669.2,3668.6,0.54892867]
[1733282537237,2.72539,3669.2,3668.6,0.54892867]
[1733282537536,3.35849619,3669.2,3668.6,0.54892867]
[1733282537718,4.61912875,3669.4,3668.6,0.54892867]
[1733282538032,2.72532,3669.3,3668.6,0.54892867]
[1733282538410,2.7254,3669.2,3668.6,0.54892867]
[1733282538796,2.72524,3669.4,3668.6,0.54892867]
[1733282539142,3.86642875,3669.4,3668.6,0.54892867]
[1733282539498,1.14118875,3669.5,3668.6,0.54892867]
[1733282539839,2.72532,3669.3,3668.6,0.54892867]
[1733282540419,2.72547,3669.1,3668.6,0.54892867]
[1733282540734,3.86648875,3669.4,3668.6,0.54892867]
[1733282541058,2.72549,3669.1,3668.6,0.54892867]
[1733282541867,1.14118875,3669.4,3668.6,0.54892867]
[1733282542031,2.7254,3669.2,3668.6,0.54892867]
[1733282543948,2.72546,3669.1,3668.6,0.54892867]
[1733282544193,2.72551,3669.1,3668.6,0.54892867]
[1733282544392,2.72556,3669.0,3668.6,0.54892867]
[1733282544600,0.7673,3669.2,3668.6,0.54892867]
[1733282544910,2.72561,3668.9,3668.6,0.54892867]
[1733282546355,0.41664267,3669.1,3668.6,0.54892867]
[1733282547581,3.14211267,3669.1,3668.6,0.54892867]
[1733282547797,4.41266354,3669.3,3668.6,0.54892867]
[1733282548099,3.27147479,3669.3,3668.6,0.54892867]
[1733282548264,0.54615479,3669.3,3668.6,0.54892867]
[1733282548460,1.14118875,3669.4,3668.6,0.54892867]
[1733282548660,1.14118875,3669.4,3668.7,0.02725508]
[1733282548862,1.14118875,3669.5,3668.6,3.30201222]
[1733282549299,1.14118875,3669.5,3668.6,0.54892867]
[1733282550106,1.14118875,3669.5,3668.4,0.29965335]
[1733282550269,1.14118875,3669.6,3668.5,0.60222557]
[1733282550595,1.14118875,3669.6,3668.8,0.2724]
[1733282551004,1.14118875,3669.8,3669.3,0.5490902]
[1733282551297,1.14118875,3669.7,3669.3,0.5490902]
[1733282552096,1.14118875,3669.6,3669.3,0.5490902]
[1733282552981,1.14118875,3669.7,3669.3,0.5490902]
[1733282553716,1.14118875,3669.6,3669.3,0.5490902]
[1733282556389,3.86634875,3669.6,3669.3,0.5490902]
[1733282556586,2.72517,3669.5,3669.3,0.5490902]
[1733282556789,3.86635875,3669.5,3669.3,0.5490902]
[1733282557091,1.14118875,3669.5,3669.3,0.5490902]
[1733282557293,1.14118875,3669.4,3669.3,0.5490902]
[1733282557597,1.50509028,3669.4,3669.3,0.5490902]
[1733282557836,0.36390153,3669.4,3669.3,0.5490902]
[1733282558391,3.08914153,3669.4,3669.3,0.5490902]
[1733282558826,1.14118875,3669.4,3669.3,0.5490902]
[1733282559132,3.86635875,3669.5,3669.3,0.5490902]
[1733282559372,1.14118875,3669.4,3669.3,0.5490902]
[1733282562953,3.86642875,3669.4,3669.3,0.5490902]
[1733282563359,4.62110512,3669.4,3669.3,0.5490902]
[1733282563753,3.47991637,3669.4,3669.3,0.5490902]
[1733282563947,5.19169949,3669.4,3669.3,0.5490902]
[1733282564337,3.47991637,3669.4,3669.3,0.5490902]
[1733282564540,3.47991637,3669.4,3668.2,0.2724]
[1733282564541,2.72543,3669.2,3668.2,0.2724]
[1733282564779,1.14367786,3669.1,3668.2,0.69003218]
[1733282564942,1.14367786,3669.2,3668.3,0.02725582]
[1733282565142,1.14367786,3669.3,3668.3,2.75328582]
[1733282565365,1.14367786,3669.4,3668.6,2.72582]
[1733282565588,1.14367786,3669.5,3668.6,2.99822]
[1733282565884,1.14367786,3669.6,3668.7,2.72575]
[1733282566047,1.14367786,3669.6,3668.8,0.299815]
[1733282566842,1.14367786,3669.6,3669.1,0.54637206]
[1733282568561,1.14367786,3669.7,3669.1,0.54637206]
[1733282568875,1.14367786,3669.6,3669.1,0.54637206]
[1733282569058,1.14367786,3669.7,3669.1,0.54637206]
[1733282569389,1.14367786,3669.8,3669.2,0.32719521]
[1733282569573,1.14367786,3669.8,3669.1,0.54637206]
[1733282570950,1.14367786,3669.9,3669.1,0.54637206]
[1733282572362,2.32132964,3670.0,3669.1,0.54637206]
[1733282574384,1.17765178,3669.2,3666.9,1.37765178]
[1733282574548,1.17765178,3668.5,3667.6,2.72657]
[1733282574744,1.17765178,3668.5,3668.2,0.54626179]
[1733282575581,3.90356178,3668.5,3668.2,0.54626179]
[1733282575749,0.25522708,3668.4,3668.2,0.54626179]
[1733282575943,0.25522708,3668.3,3668.2,0.54626179]
[1733282576172,0.25522708,3668.3,3667.2,2.72683]
[1733282576349,0.25522708,3668.2,3667.3,0.31369952]
[1733282576544,0.25522708,3668.1,3667.3,0.31369952]
[1733282576781,1.17765178,3668.5,3668.0,0.53278933]
[1733282577081,0.25520126,3668.4,3668.0,0.53278933]
[1733282577284,0.25520126,3668.3,3668.0,0.53278933]
[1733282577484,0.25520126,3668.2,3668.0,0.53278933]
[1733282577651,0.25520126,3668.1,3668.0,0.53278933]
[1733282577852,0.25516092,3668.1,3668.0,0.53278933]
[1733282578259,5.33695597,3668.7,3668.0,0.53278933]
[1733282578260,0.7618,3668.6,3668.0,0.53278933]
[1733282578578,0.7618,3668.0,3666.8,2.72713]
[1733282578792,0.7618,3668.0,3667.5,0.54887992]
[1733282578997,3.48808,3668.0,3667.5,0.54887992]
[1733282579210,5.33754597,3667.9,3667.5,0.54887992]
[1733282579400,0.41985929,3667.8,3667.5,0.54887992]
[1733282579603,0.25510759,3667.7,3667.5,0.54887992]
[1733282579820,0.41985929,3667.8,3666.4,0.2724]
[1733282580099,0.25494996,3667.6,3667.2,0.55315757]
[1733282580688,0.25494996,3667.7,3667.2,0.55315757]
[1733282581898,0.25494996,3667.6,3667.2,0.55315757]
[1733282582056,0.25494996,3667.8,3667.2,0.55315757]
[1733282582561,2.72652,3667.7,3667.2,0.55315757]
[1733282582759,0.81421555,3667.6,3667.2,0.55315757]
[1733282583061,0.831,3667.4,3667.2,0.55315757]
[1733282583386,0.831,3667.4,3666.0,2.72776]
[1733282583702,2.61118597,3667.1,3665.5,2.7281]
[1733282583893,2.61118597,3667.1,3665.8,2.72791]
[1733282584065,2.61118597,3667.1,3666.1,2.72766]
[1733282584261,2.61118597,3667.1,3665.9,0.272791]
[1733282584462,2.61118597,3667.1,3666.7,0.5370054]
[1733282585828,0.8331,3667.0,3664.8,2.72862]
[1733282585989,2.61118597,3666.5,3666.0,0.53536835]
[1733282586306,0.2611186,3666.4,3666.0,0.53536835]
[1733282586524,0.8265,3666.3,3666.0,0.53536835]
[1733282587111,0.8265,3666.3,3665.1,3.0]
[1733282587273,0.8265,3666.3,3665.0,2.72849]
[1733282587477,2.61118597,3666.1,3665.9,0.55109771]
[1733282587695,0.44143066,3666.0,3665.9,0.55109771]
[1733282588415,0.7987,3666.8,3665.9,0.55109771]
[1733282588793,0.7987,3666.8,3666.0,2.72774]
[1733282589023,0.7987,3666.8,3666.1,2.72766]
[1733282589285,0.7987,3666.8,3665.9,0.55109771]
[1733282589598,0.7987,3666.8,3666.2,2.72761]
[1733282589796,0.7987,3666.8,3666.3,0.272761]
[1733282590026,0.7987,3666.8,3666.3,2.72754]
[1733282590234,2.61118597,3667.1,3666.3,2.72754]
[1733282590235,3.36658597,3667.1,3666.3,2.72754]
[1733282590647,3.36658597,3667.1,3666.1,2.72768]
[1733282591215,3.36658597,3667.1,3665.6,3.0]
[1733282591414,6.09353597,3667.1,3665.6,3.0]
[1733282591651,2.72651,3667.7,3442.9,0.03312616]
[1733282591652,2.61118597,3666.3,3664.3,2.72903]
[1733282591833,2.61118597,3666.3,3665.5,2.72813]
[1733282593044,2.61118597,3666.3,3664.9,0.55104312]
[1733282593528,0.8121,3666.2,3665.2,2.72835]
[1733282593720,0.8121,3666.2,3665.2,2.72829]
[1733282594039,0.8121,3666.2,3665.2,2.7283]
[1733282594279,0.8121,3666.2,3665.2,2.72834]
[1733282594548,2.61118597,3665.9,3664.7,3.0]
[1733282594726,2.61118597,3665.9,3665.1,2.72843]
[1733282594927,2.61118597,3665.9,3664.6,2.72881]
[1733282594928,0.7539,3666.0,3665.5,0.53871685]
[1733282595653,0.7539,3666.0,3665.5,3.26683685]
[1733282596022,0.7539,3666.0,3665.5,0.53871685]
[1733282596435,0.7539,3666.0,3665.5,3.26682685]
[1733282596727,2.61118597,3665.9,3665.5,0.53871685]
[1733282596928,0.766,3665.8,3665.5,0.53871685]
[1733282597500,0.766,3665.8,3663.7,2.61118597]
[1733282597699,0.766,3665.8,3663.9,2.72933]
[1733282597930,0.766,3665.8,3664.3,0.2724]
[1733282598245,0.766,3665.8,3665.5,0.53227496]
[1733282599834,0.7831,3666.3,3665.5,0.53227496]
[1733282600033,0.2531995,3666.6,3665.9,2.72782]
[1733282600190,0.7831,3666.9,3665.9,2.72782]
[1733282600396,0.7831,3666.9,3665.5,0.55955647]
[1733282600397,0.42568391,3666.8,3665.7,2.72799]
[1733282600593,0.772,3666.6,3665.5,3.26040496]
[1733282600788,0.772,3666.6,3665.5,0.53227496]
[1733282601235,1.02528959,3666.6,3665.5,0.53227496]
[1733282601392,0.7803,3666.5,3665.5,0.53227496]
[1733282601597,2.72763,3666.2,3665.5,0.53227496]
[1733282601803,0.7803,3666.2,3665.5,0.53227496]
[1733282602508,0.7803,3666.2,3665.5,3.26033496]
[1733282603434,0.7803,3666.2,3665.5,0.53227496]
[1733282603751,0.8081,3666.5,3665.5,0.53227496]
[1733282604031,0.8081,3666.5,3665.8,2.72784]
[1733282604369,0.8081,3666.5,3665.9,2.72781]
[1733282604567,1.03456143,3666.8,3666.1,2.72768]
[1733282605289,0.25376143,3666.7,3666.1,2.72768]
[1733282605443,0.25376143,3666.6,3666.1,2.72768]
[1733282605781,0.25376143,3666.7,3666.1,2.72768]
[1733282605959,0.25376143,3666.6,3666.1,2.72768]
[1733282606136,0.25376143,3666.7,3666.1,3.03304915]
[1733282606533,0.25376143,3666.6,3666.1,0.30536915]
[1733282606739,0.25376143,3666.5,3666.3,2.72752]
[1733282607034,0.25376143,3666.7,3666.3,2.72752]
[1733282607276,0.25376143,3666.6,3666.4,0.55340822]
[1733282607439,0.7808,3666.8,3666.4,0.55340822]
[1733282607640,0.25441249,3666.7,3666.4,0.55340822]
[1733282607861,0.25441249,3666.6,3666.5,0.32809282]
[1733282608077,0.7808,3666.8,3666.5,0.32809282]
[1733282608390,0.25440837,3666.7,3666.5,0.32809282]
[1733282608684,0.25440837,3666.6,3666.5,0.32809282]
[1733282608892,0.25440837,3666.6,3666.4,0.55340822]
[1733282609257,2.61118597,3667.5,3666.6,2.72731]
[1733282609454,1.0501317,3667.4,3666.4,0.55340822]
[1733282609791,0.2546317,3667.3,3666.8,2.7271]
[1733282610010,0.2546317,3667.2,3666.8,2.99981]
[1733282610353,0.2546317,3667.2,3666.8,0.27271]
[1733282610553,0.7955,3667.4,3666.6,2.72731]
[1733282611256,0.25461218,3667.3,3666.2,3.0]
[1733282611560,0.25461218,3667.2,3666.2,3.0]
[1733282611770,0.25461218,3667.1,3666.2,3.0]
[1733282611965,0.25461218,3667.0,3666.2,3.0]
[1733282612170,0.25461218,3666.9,3666.5,2.72738]
[1733282612371,0.7955,3667.4,3666.5,2.72738]
[1733282612693,0.25477543,3667.3,3666.5,2.72738]
[1733282613000,0.8312,3667.1,3665.8,2.72789]
[1733282613188,0.8312,3666.9,3665.9,3.0]
[1733282613377,0.25477543,3666.8,3665.9,3.572789]
[1733282613550,0.25477543,3666.8,3666.4,0.53717248]
[1733282613988,0.25477543,3666.7,3666.4,0.53717248]
[1733282614197,1.05017543,3666.6,3666.4,0.53717248]
[1733282614351,0.25477543,3666.5,3665.7,2.72795]
[1733282614690,0.7954,3666.6,3665.8,0.272795]
[1733282614889,0.25492019,3666.5,3665.6,3.0]
[1733282615098,0.8,3666.3,3665.5,2.72813]
[1733282615282,0.25492019,3666.2,3665.5,2.72813]
[1733282615481,0.25492019,3666.1,3665.5,2.72813]
[1733282615878,0.25492019,3666.0,3665.5,2.72813]
[1733282616204,0.25498516,3665.9,3665.5,3.000943]
[1733282616510,0.8,3666.3,3665.5,3.000943]
[1733282616678,0.25498625,3666.2,3665.6,2.72806]
[1733282616872,0.25498625,3666.1,3665.6,2.72806]
[1733282617074,0.25498625,3666.0,3665.8,0.53353932]
[1733282617272,0.8,3666.3,3665.8,0.53353932]
[1733282617578,0.25499262,3666.2,3665.8,0.53353932]
[1733282617785,0.25499262,3666.1,3665.8,0.53353932]
[1733282617991,0.25499262,3666.0,3665.8,0.53353932]
[1733282618178,0.25499262,3665.9,3665.8,0.53353932]
[1733282618493,0.25499838,3665.9,3665.8,0.53353932]
[1733282619820,0.8,3666.3,3665.8,0.53353932]
[1733282620014,0.25501425,3666.2,3665.8,0.53353932]
[1733282620307,0.25501425,3666.1,3665.8,0.53353932]
[1733282620519,0.25501425,3666.0,3665.8,0.53353932]
[1733282620674,0.25501425,3665.9,3665.8,0.53353932]
[1733282621013,0.25501425,3665.9,3665.8,3.26144932]
[1733282621209,0.25501425,3665.9,3665.8,0.53353932]
[1733282621410,0.25504208,3665.9,3665.8,0.53353932]
[1733282621572,0.8,3666.3,3665.8,0.53353932]
[1733282621905,0.25503802,3666.2,3665.8,0.53353932]
[1733282622507,0.25503802,3666.1,3665.8,0.53353932]
[1733282622816,0.8012,3666.6,3665.8,0.53353932]
[1733282622974,0.8012,3666.4,3665.9,0.35335393]
[1733282623180,0.2550227,3666.3,3665.8,0.53353932]
[1733282623380,0.2550227,3666.2,3665.8,0.53353932]
[1733282623581,0.2550227,3666.1,3665.8,0.53353932]
[1733282624116,0.2550227,3666.0,3665.8,0.53353932]
[1733282624282,0.2550227,3665.9,3665.8,0.53353932]
[1733282624978,0.8012,3666.4,3665.8,0.53353932]
[1733282629034,3.52867,3666.4,3665.8,0.53353932]
[1733282629187,3.881537,3666.4,3665.8,0.53353932]
[1733282630221,2.72756,3666.3,3665.8,0.53353932]
[1733282630408,1.14642106,3666.4,3665.8,0.53353932]
[1733282631538,2.72756,3666.3,3665.1,3.0092]
[1733282632121,2.72756,3666.3,3665.7,0.55776369]
[1733282632704,1.14642106,3666.4,3665.7,0.55776369]
[1733282633223,3.87389106,3666.4,3665.7,0.55776369]
[1733282633802,1.14642106,3666.4,3665.7,0.55776369]
[1733282633995,0.79355406,3666.4,3665.7,0.55776369]
[1733282634640,0.79355406,3666.4,3664.9,0.2728]
[1733282634641,3.49061,3665.8,3664.4,3.01095]
[1733282634794,2.728,3665.7,3665.3,0.53756278]
[1733282634989,0.7627,3665.8,3665.3,0.53756278]
[1733282637094,0.25511321,3665.7,3665.3,0.53756278]
[1733282637430,0.25511321,3665.6,3665.3,0.53756278]
[1733282637635,0.25511321,3665.5,3665.3,0.53756278]
[1733282637803,0.25511321,3665.4,3665.3,0.53756278]
[1733282638149,2.72838,3665.2,3664.1,0.0092]
[1733282638354,0.25511321,3665.1,3664.2,0.273845]
[1733282638583,0.25511321,3665.0,3664.2,0.273845]
[1733282638856,0.25511321,3664.9,3664.2,0.273845]
[1733282639049,0.25511321,3664.8,3664.2,0.273845]
[1733282639233,0.8013,3665.3,3664.7,0.5593359]
[1733282639406,0.25487272,3665.2,3664.7,0.5593359]
[1733282639753,0.25487272,3665.1,3664.7,0.5593359]
[1733282639950,0.25487272,3665.0,3664.7,0.5593359]
[1733282640153,0.25487272,3664.9,3664.8,0.0092]
[1733282640352,0.25487272,3664.9,3664.8,0.33893959]
[1733282640649,0.25487272,3665.5,3664.8,0.33893959]
[1733282640852,0.25487272,3665.4,3664.8,0.0092]
[1733282641053,0.25487272,3665.3,3664.8,0.0092]
[1733282641221,0.25487272,3665.2,3664.8,0.0092]
[1733282641430,0.25487272,3665.1,3664.8,0.0092]
[1733282641638,0.25487272,3665.0,3664.8,0.0092]
[1733282641872,0.25487272,3665.5,3664.8,3.06759359]
[1733282642012,0.25487272,3665.4,3664.8,0.33893359]
[1733282642212,0.25487272,3665.3,3664.8,0.33893359]
[1733282642454,0.25487272,3665.2,3664.8,0.33893359]
[1733282642609,0.2548756,3665.1,3664.8,0.0092]
[1733282642959,0.25487753,3665.5,3664.8,2.73785]
[1733282643255,0.7812,3665.6,3664.8,2.73785]
[1733282643408,0.2548713,3665.5,3664.8,0.0092]
[1733282643613,0.2548713,3665.4,3665.0,2.72851]
[1733282643837,0.2548713,3665.4,3665.1,0.273771]
[1733282644621,0.2548713,3665.3,3665.1,0.273771]
[1733282644914,0.2548713,3665.5,3665.1,0.273771]
[1733282645351,0.2548713,3665.5,3664.8,2.73785]
[1733282645695,0.2548713,3665.4,3664.8,2.73785]
[1733282645830,0.2548713,3665.3,3664.9,2.72857]
[1733282646032,0.2548713,3665.5,3664.9,2.72857]
[1733282646337,0.2548713,3665.4,3664.9,2.72857]
[1733282646538,0.2548713,3665.4,3665.0,0.32971059]
[1733282646736,0.2548713,3665.4,3665.0,2.7285]
[1733282647032,0.2548713,3665.3,3665.0,2.7285]
[1733282647232,0.2548713,3665.9,3665.0,2.7285]
[1733282647545,0.2548713,3665.8,3665.0,2.7285]
[1733282647750,0.7533,3665.6,3664.7,0.5593359]
[1733282647949,0.2548713,3665.5,3664.7,0.5593359]
[1733282648145,0.2548713,3665.4,3664.7,0.5593359]
[1733282648346,0.2548713,3665.3,3664.7,0.5593359]
[1733282648671,0.7533,3665.6,3664.7,0.5593359]
[1733282648862,0.7533,3665.6,3664.8,2.73786]
[1733282649045,0.7533,3665.6,3664.8,3.06757959]
[1733282649229,0.25490571,3665.5,3664.8,3.06757959]
[1733282649435,0.25490571,3665.4,3664.9,2.72857]
[1733282649632,0.25490571,3665.3,3664.9,2.72857]
[1733282649868,0.7533,3665.6,3664.9,2.72857]
[1733282650070,0.25490905,3665.5,3664.9,3.09125255]
[1733282650639,0.25490905,3665.4,3664.9,3.09125255]
[1733282650861,0.25490905,3665.3,3665.0,2.7285]
[1733282651668,0.25494577,3665.5,3665.0,2.7285]
[1733282651877,0.25494577,3665.4,3665.0,2.7285]
[1733282652091,0.25494577,3665.3,3665.0,3.09447184]
[1733282652380,0.25494577,3665.5,3665.0,3.09447184]
[1733282652541,0.25497653,3665.4,3665.0,3.09447184]
[1733282652875,0.25497653,3665.3,3665.1,2.7284]
[1733282653199,0.8165,3666.2,3665.5,2.72813]
[1733282653371,0.25494016,3666.1,3664.9,2.72855]
[1733282653563,2.72778,3666.0,3664.8,2.72863]
[1733282653762,1.07144016,3665.9,3664.8,2.72863]
[1733282654004,1.07144016,3665.9,3664.8,0.65699659]
[1733282654005,0.25494016,3665.8,3664.8,0.65699659]
[1733282654300,0.25494016,3665.7,3664.8,0.65699659]
[1733282654500,0.25494016,3665.6,3665.1,2.72836]
[1733282654698,0.8165,3665.9,3665.1,2.72836]
[1733282654699,0.25494016,3665.5,3665.1,2.72836]
[1733282654906,0.8165,3665.9,3665.1,2.72836]
[1733282655203,0.2550238,3665.8,3664.8,2.75588107]
[1733282655404,1.14306154,3666.6,3664.5,3.00167]
[1733282655405,0.2550238,3665.7,3665.4,0.54996026]
[1733282655568,0.7681,3666.2,3665.6,2.73726]
[1733282655898,0.832,3666.6,3665.8,2.7279]
[1733282656107,0.25504094,3666.1,3665.8,2.7279]
[1733282656507,0.25504094,3666.5,3665.8,2.7279]
[1733282656713,0.25504094,3666.5,3665.6,0.0092]
[1733282657004,0.25504094,3666.4,3665.9,2.7278]
[1733282657301,0.25504094,3666.3,3666.0,2.72776]
[1733282657465,6.48118751,3667.2,3666.2,2.72761]
[1733282657466,0.7661,3667.2,3666.2,2.72761]
[1733282657665,0.25498093,3667.1,3666.3,2.72747]
[1733282658078,0.25498093,3667.1,3666.4,2.72746]
[1733282658480,0.25498093,3667.0,3666.5,2.72739]
[1733282658664,0.25498093,3666.9,3666.5,3.27456552]
[1733282658865,0.25498093,3666.8,3666.5,3.27456552]
[1733282659068,0.25498093,3666.7,3666.5,3.27456552]
[1733282659399,0.25498093,3667.1,3666.5,3.27456552]
[1733282659567,0.25498093,3667.0,3666.5,3.27456552]
[1733282659768,0.25498093,3666.9,3666.6,0.0272707]
[1733282659986,0.7993,3667.5,3666.7,2.72722]
[1733282660186,0.7993,3667.5,3666.8,2.72717]
[1733282660670,0.25498093,3667.4,3666.8,2.72717]
[1733282661665,0.25498093,3667.4,3666.7,2.72722]
[1733282661868,0.25498093,3667.4,3666.7,3.05556955]
[1733282662111,0.25498093,3667.4,3666.7,0.32835955]
[1733282662275,0.25498093,3667.4,3666.5,0.55637552]
[1733282662781,0.7993,3667.5,3666.6,2.72732]
[1733282662981,1.05428093,3667.5,3666.7,2.72723]
[1733282663204,0.7993,3667.5,3667.1,0.54661036]
[1733282665486,0.8323,3667.8,3667.1,3.28273036]
[1733282665688,0.8323,3667.8,3667.2,0.32827304]
[1733282665889,0.8304,3668.2,3667.2,0.02726495]
[1733282666083,0.8304,3668.2,3667.1,0.55581036]
[1733282666329,0.25429369,3668.5,3667.9,2.72635]
[1733282666509,0.25429369,3668.5,3667.9,2.73555]
[1733282666904,0.8304,3668.6,3668.0,2.75353094]
[1733282667090,0.8304,3668.6,3668.0,0.02726094]
[1733282667279,0.8304,3668.6,3668.0,0.02725986]
[1733282667906,0.8304,3668.6,3667.9,2.72635]
[1733282668078,0.8304,3668.6,3667.9,0.31168666]
[1733282668286,0.8304,3668.6,3667.7,2.72649]
[1733282668687,2.72591,3668.5,3667.3,0.0092]
[1733282668919,2.72591,3668.5,3667.2,2.72686]
[1733282668920,1.05490137,3668.4,3667.2,2.72686]
[1733282669212,0.8013,3668.3,3667.2,2.72686]
[1733282669465,0.8013,3668.3,3667.3,0.8347246]
[1733282669780,1.05490137,3668.3,3667.3,0.8347246]
[1733282670220,0.8013,3668.2,3667.8,0.53429759]
[1733282671715,0.7942,3668.0,3666.2,0.0092]
[1733282671915,2.7265,3667.8,3666.2,0.0092]
[1733282672156,3.5207,3667.7,3666.4,2.72746]
[1733282672850,0.7942,3667.7,3666.2,0.32638221]
[1733282673213,0.7942,3667.7,3666.4,3.0]
[1733282673445,0.7942,3667.7,3666.2,0.32638221]
[1733282673858,0.7942,3667.7,3667.1,0.53593504]
[1733282674014,1.1716203,3667.7,3667.1,0.53593504]
[1733282674222,1.04784297,3667.7,3667.1,0.53593504]
[1733282674763,0.7942,3667.7,3667.1,0.53593504]
[1733282675128,0.25371443,3668.0,3667.1,0.56320145]
[1733282675351,1.08411443,3668.3,3667.1,0.89317519]
[1733282675787,1.08411443,3668.3,3667.2,2.72686]
[1733282677619,1.08411443,3668.3,3667.1,0.89317519]
[1733282677620,3.81018443,3668.3,3667.1,0.89317519]
[1733282677818,0.25371443,3668.2,3667.1,3.35724015]
[1733282678066,0.25371443,3668.2,3667.1,3.08417015]
[1733282678236,0.25371443,3668.2,3667.2,0.30933702]
[1733282678639,2.97984443,3668.2,3667.2,0.30933702]
[1733282678837,0.25371443,3668.1,3667.1,0.35724015]
[1733282679606,0.25371443,3668.1,3667.1,3.08418015]
[1733282680074,0.25371443,3668.1,3667.2,0.2728]
[1733282680227,3.81019443,3668.3,3667.1,3.08418015]
[1733282680421,0.8214,3668.2,3667.8,0.54374315]
[1733282680663,3.54775,3667.9,3667.8,0.54374315]
[1733282680960,3.80146443,3667.9,3667.8,0.54374315]
[1733282681726,3.80195732,3667.9,3667.8,0.54374315]
[1733282681964,4.18215305,3667.9,3667.8,0.54374315]
[1733282688192,0.25509493,3666.5,3666.1,0.55726133]
[1733282688345,0.25509493,3666.4,3666.2,0.0272742]
[1733282688696,8.56544724,3667.7,3666.1,0.55726133]
[1733282688697,0.8272,3667.0,3666.1,0.55726133]
[1733282688985,0.25501763,3666.9,3666.1,3.28491133]
[1733282689164,0.25501763,3666.8,3666.2,0.32941113]
[1733282689679,0.25501763,3666.7,3666.1,0.55726133]
[1733282690246,0.25501763,3666.6,3666.1,0.55726133]
[1733282690446,1.08101763,3666.5,3666.1,0.55726133]
[1733282690972,0.25501763,3666.4,3666.1,0.55726133]
[1733282691172,0.25501763,3666.3,3666.1,0.55726133]
[1733282691373,0.25501763,3666.2,3666.1,0.55726133]
[1733282692508,0.25484164,3666.2,3666.1,0.55726133]
[1733282692716,0.826,3666.5,3666.1,0.55726133]
[1733282693580,0.2547625,3666.2,3666.1,0.55726133]
[1733282694175,0.2547625,3666.4,3666.1,0.55726133]
[1733282694711,0.2547625,3666.2,3666.1,0.55726133]
[1733282695367,0.2547625,3666.4,3666.1,0.55726133]
[1733282695802,0.2547625,3666.3,3666.1,0.55726133]
[1733282696099,0.2547625,3666.4,3666.1,0.55726133]
[1733282696304,0.2547625,3666.3,3666.1,0.55726133]
[1733282696518,0.2547625,3666.4,3666.1,0.55726133]
[1733282696719,0.2547625,3666.3,3666.1,0.55726133]
[1733282696876,0.2547625,3666.2,3666.1,0.55726133]
[1733282697092,0.2547625,3666.4,3666.1,0.55726133]
[1733282697307,0.826,3666.5,3666.1,0.55726133]
[1733282697308,0.2547625,3666.3,3666.1,0.55726133]
[1733282697507,1.0807625,3666.5,3666.1,0.55726133]
[1733282697809,0.2547625,3666.4,3666.1,0.55726133]
[1733282700882,2.72761,3666.2,3666.1,0.55726133]
[1733282701111,3.8105725,3666.2,3666.1,0.55726133]
[1733282701481,1.0829625,3666.2,3666.1,0.55726133]
[1733282701677,1.1121081,3666.2,3666.1,0.55726133]
[1733282701901,1.3668706,3666.2,3666.1,0.55726133]
[1733282702814,1.36665682,3666.2,3666.1,0.55726133]
[1733282703976,4.09426682,3666.2,3666.1,0.55726133]
[1733282705009,4.5036935,3666.2,3666.1,0.55726133]
[1733282706595,4.5036935,3666.2,3665.1,0.0092]
[1733282706802,0.25454872,3666.1,3665.1,0.0092]
[1733282707177,2.98224872,3666.1,3665.1,0.0092]
[1733282707382,2.98230872,3666.0,3665.1,0.0092]
[1733282707683,0.25454872,3665.9,3665.1,0.0092]
[1733282709132,0.254621,3666.1,3665.1,0.0092]
[1733282709417,0.254621,3666.0,3665.2,0.273769]
[1733282709627,0.254621,3666.0,3665.8,0.53603168]
[1733282709860,0.25468476,3666.1,3665.8,0.53603168]
[1733282710376,0.50936937,3666.1,3665.8,0.53603168]
[1733282710521,8.56544724,3667.3,3665.8,0.53603168]
[1733282710522,0.25474684,3667.0,3665.9,0.0092]
[1733282710722,0.8017,3667.3,3665.9,0.0092]
[1733282710723,0.8017,3667.3,3666.0,0.89763376]
[1733282710924,0.8017,3667.3,3666.2,0.0092]
[1733282711462,0.8017,3667.3,3666.5,2.72738]
[1733282711825,0.8017,3667.3,3666.6,2.72731]
[1733282712340,0.8286,3667.7,3666.6,3.000041]
[1733282712828,0.8286,3667.7,3666.7,2.72723]
[1733282713024,0.8286,3667.7,3666.8,0.0092]
[1733282714427,0.8286,3667.7,3666.6,2.72731]
[1733282714964,2.72657,3667.6,3666.5,0.0092]
[1733282715160,0.355517,3667.5,3666.5,0.0092]
[1733282715528,3.899577,3667.5,3667.4,0.54018789]
[1733282715757,3.54406,3667.5,3667.4,0.54018789]
[1733282715974,0.8174,3667.5,3667.4,0.54018789]
[1733282718374,3.54405,3667.5,3667.4,0.54018789]
[1733282720186,2.72683,3667.3,3666.1,2.05863989]
[1733282720497,2.72716,3666.9,3665.5,2.72813]
[1733282720785,2.72719,3666.8,3665.6,3.0]
[1733282721190,2.72702,3667.0,3665.2,3.273769]
[1733282721395,2.72702,3667.0,3666.7,0.53794401]
[1733282721556,0.3897643,3666.9,3666.7,0.53794401]
[1733282723007,0.25491022,3666.8,3666.7,0.53794401]
[1733282723562,2.98208022,3666.8,3666.7,0.53794401]
[1733282724471,0.25491022,3666.8,3666.7,0.53794401]
[1733282725911,0.25491022,3667.0,3666.7,0.53794401]
[1733282726155,0.25491022,3666.9,3666.7,0.53794401]
[1733282726314,0.7541,3667.4,3666.7,0.53794401]
[1733282726517,0.25489158,3667.3,3666.7,0.53794401]
[1733282726746,0.25489158,3667.2,3666.7,0.53794401]
[1733282726933,0.25489158,3667.1,3666.7,0.53794401]
[1733282727165,0.25489158,3667.0,3666.7,0.53794401]
[1733282727363,0.25489158,3666.9,3666.7,0.53794401]
[1733282727663,0.25489158,3667.2,3666.7,0.53794401]
[1733282727848,0.25489158,3667.1,3666.7,0.53794401]
[1733282728044,0.25489158,3667.0,3666.7,0.53794401]
[1733282728357,0.25489158,3666.9,3666.7,0.86447641]
[1733282728590,0.25489158,3667.2,3666.7,3.59171641]
[1733282728786,0.25489158,3667.1,3666.8,2.72717]
[1733282728987,0.25489158,3667.7,3666.9,2.72707]
[1733282729144,0.25489158,3667.6,3666.9,2.72707]
[1733282729348,0.25489158,3667.5,3667.0,0.36188131]
[1733282729641,0.25489158,3667.4,3667.0,0.36188131]
[1733282729843,0.25489158,3667.7,3666.9,2.72709]
[1733282730091,0.25489158,3667.7,3667.0,2.75428399]